{"text_format":"3","workbook":"xlsx","n_sheets":2,"sheets":["Ficha indicador","Instructivo"],"not_rendered":{"charts":1,"images":2},"read":"whole","date_system":"1900"}

{"sheet":"Ficha indicador","index":0,"n_rows":33,"n_cols":13,"rows_kept":33,"merged":[[0,0,0,1],[0,2,0,10],[0,11,0,12],[1,0,1,1],[1,2,1,3],[1,4,1,7],[1,8,1,10],[1,11,1,12],[2,0,2,12],[3,0,3,2],[3,3,3,12],[4,0,4,2],[4,3,4,12],[5,0,5,2],[5,3,5,12],[6,0,6,2],[6,3,6,12],[7,0,7,12],[8,0,9,2],[8,3,9,3],[8,4,9,5],[8,6,9,6],[8,7,9,7],[8,8,8,11],[8,12,9,12],[9,8,9,9],[9,10,9,11],[10,0,14,2],[10,3,14,3],[10,4,10,5],[10,6,14,6],[10,7,14,7],[10,8,14,9],[10,10,14,11],[10,12,14,12],[11,4,11,5],[12,4,12,5],[13,4,13,5],[14,4,14,5],[15,0,15,12],[16,0,16,12],[17,0,17,12],[18,0,18,12],[27,0,27,12],[28,0,28,12],[29,0,29,12],[30,0,30,12],[31,0,31,12],[32,0,32,12],[33,0,33,12]]}
[null,null,"FORMATO\nFICHA INDICADOR DE GESTIÓN"]
["PROCESO\nGARANTÍA DE LA CALIDAD",null,"CODIGO: GC-S6-F1",null,"VIGENCIA: 13/12/2023",{"$nulls":3},"V6",null,null,"PAGINA 1 DE 1"]
[]
["PRESENTADO POR:"]
["SUBPROCESO:"]
["PERIODO A PRESENTAR:"]
["FECHA DE PRESENTACIÓN:"]
[]
["ALCANCE",null,null,"NOMBRE DEL INDICADOR","DEFINICIÓN OPERACIONAL",null,"META","FRECUENCIA","FUENTE DE INFORMACIÓN",{"$nulls":3},"RESPONSABLE DE CALCULAR "]
[{"$nulls":8},"Fuente del numerador",null,"Fuente del denominador"]
[{"$nulls":4},"Numerador:"]
[{"$nulls":4},"Denominador:"]
[{"$nulls":4},"Unidad de medición:"]
[{"$nulls":4},"Factor:"]
[{"$nulls":4},"Formula del indicador:"]
[]
["DATOS OBTENIDOS"]
[]
["PERIODO"]
[null,"Enero","Febrero","Marzo","Abril","Mayo","Junio","Julio","Agosto","Septiembre","Octubre","Noviembre","Diciembre"]
["META",null,{"$f":"$B$21","v":{"v":0,"d":"0%"}},{"$f":"$B$21","v":{"v":0,"d":"0%"}},{"v":0,"d":"0%"},{"v":0,"d":"0%"},{"v":0,"d":"0%"},{"v":0,"d":"0%"},{"v":0,"d":"0%"},{"v":0,"d":"0%"},{"v":0,"d":"0%"},{"v":0,"d":"0%"},{"v":0,"d":"0%"}]
["SEGUNDO AÑO ANTERIOR"]
["AÑO ANTERIOR"]
["RESULTADO PERIODO ACTUAL",{"$f":"B25/B26","v":{"$error":"#DIV/0!"}},{"$error":"#DIV/0!"},{"$error":"#DIV/0!"},{"$error":"#DIV/0!"},{"$error":"#DIV/0!"},{"$error":"#DIV/0!"},{"$error":"#DIV/0!"},{"$error":"#DIV/0!"},{"$error":"#DIV/0!"},{"$error":"#DIV/0!"},{"$error":"#DIV/0!"},{"$error":"#DIV/0!"}]
["Dato del numerador"]
["Dato del denominador"]
[]
["GRÁFICO DE BARRAS"]
[]
[]
["ANALISIS Y OBSERVACIONES"]
[]
["ACCIONES DE MEJORA"]

{"sheet":"Instructivo","index":1,"n_rows":55,"n_cols":8,"rows_kept":55,"merged":[[0,1,0,6],[0,7,0,8],[1,1,1,2],[1,3,1,4],[1,5,1,6],[1,7,1,8],[2,0,2,8],[3,0,3,8],[4,0,4,8],[5,0,5,1],[5,2,5,8],[6,0,6,1],[6,2,6,8],[7,0,7,8],[8,0,8,8],[9,0,9,8],[10,0,10,1],[10,2,10,8],[11,0,11,1],[11,2,11,8],[12,0,12,1],[12,2,12,8],[13,0,13,1],[13,2,13,8],[14,0,14,8],[15,0,15,1],[15,2,15,8],[16,0,16,1],[16,2,16,8],[17,0,17,1],[17,2,17,8],[18,0,18,1],[18,2,18,8],[19,0,19,1],[19,2,19,8],[20,0,20,1],[20,2,20,8],[21,0,21,1],[21,2,21,8],[22,0,22,1],[22,2,22,8],[23,0,23,1],[23,2,23,8],[24,0,24,1],[24,2,24,8],[25,0,25,1],[25,2,25,8],[26,0,26,1],[26,2,26,8],[27,0,27,1],[27,2,27,8],[28,0,28,1],[28,2,28,8],[29,0,29,8],[30,0,30,8],[31,0,31,1],[31,2,31,8],[32,0,32,1],[32,2,32,8],[33,0,33,1],[33,2,33,8],[34,0,34,1],[34,2,34,8],[35,0,35,1],[35,2,35,8],[36,0,36,1],[36,2,36,8],[37,0,37,1],[37,2,37,8],[38,0,38,8],[39,0,39,1],[39,2,39,8],[40,0,40,8],[41,0,41,1],[41,2,41,8],[42,0,42,1],[42,2,42,8],[46,0,46,8],[47,0,47,2],[47,3,47,5],[47,6,47,8],[48,0,48,2],[48,3,48,5],[48,6,48,8],[49,0,49,2],[49,3,49,5],[49,6,49,8],[50,0,50,2],[50,3,50,5],[50,6,50,8],[51,0,51,2],[51,3,51,5],[51,6,51,8],[52,0,52,2],[52,3,52,5],[52,6,52,8],[53,0,53,2],[53,3,53,5],[53,6,53,8],[54,0,54,2],[54,3,54,5],[54,6,54,8]]}
[null,"FORMATO\nFICHA INDICADOR DE GESTIÓN"]
["PROCESO\nGARANTÍA DE LA CALIDAD","CODIGO: GC-S6-F1",null,"VIGENCIA: 14/12/2023",null,"V6",null,"PAGINA 1 DE 1"]
[]
["INSTRUCTIVO PARA DILIGENCIAR EL FORMATO \n\"FICHA INDICADOR DE GESTIÓN\""]
[]
["OBJETIVO: ",null,"Proponer un instrumento con fiable, valido, sensible, especifico y relevante, el cual permita brindar lecturas confiables y apoyar la toma de decisiones pertinentes."]
["ALCANCE: ",null,"Llevar un seguimiento mensual de los indicadores."]
[]
["Para el diligenciamiento correcto del formato tenga en cuenta lo siguiente:"]
[]
["RESPONSABLE DEL INDICADOR",null,"Registrar el cargo que desempeña el funcionario responsable del indicador."]
["SUBPROCESO: ",null,"Registrar el nombre del subproceso al que pertenece el indicador a analizar. "]
["PERIODO A PRESENTAR: ",null,"Registrar el año en que se analiza el indicador."]
["FECHA DE DILIGENCIAMIENTO DEL ULTIMO DATO INGRESADO: ",null,"Registrar día, mes y año en el que se diligencia la ficha del indicador."]
[]
["ALCANCE",null,"Describir de forma cualitativa, la calidad prevista o esperada, en relación con un atributo especifico (característica deseable para el proceso y que se pretende medir) "]
["NOMBRE DEL INDICADOR: ",null,"Registrar de manera clara y precisa el nombre del indicador. La primera palabra en el nombre debe hacer referencia a su tipo matemático (proporción, tasa, índice, razón, promedio)."]
["DEFINICIÓN OPERACIONAL:",null,"Partes que conforman el indicador."]
["Numerador:",null,"Registrar el numerador de acuerdo al tipo matemático del indicador."]
["Denominador:",null,"Registrar el denominador de acuerdo al tipo matemático del indicador."]
["Unidad de medición:",null,"Registrar la unidad de medida de acuerdo al tipo matemático del indicador."]
["Factor:",null,"Registrar el factor de acuerdo al tipo matemático del indicador."]
["Formula del indicador: ",null,"Formular la expresión matemática que aplique ppara el indicador"]
["META: ",null,"Registrar el valor que se espera alcance el indicador."]
["FRECUENCIA: ",null,"Registrar la periodicidad en que se evalúa el indicador."]
["FUENTE DE INFORMACIÓN: ",null,"Para la construcción e interpretación de un indicador requiere el uso de fuentes confiables de información. "]
["Fuente del numerador: ",null,"Registrar el origen del dato obtenido para el numerador."]
["Fuente del denominador: ",null,"Registrar el origen del dato obtenido para el denominador."]
["RESPONSABLE DE REGISTRO DE LOS DATOS",null,"Diligenciar el nombre del funcionario responsable de alimentar los datos necesarios para el análisis posterior de la información."]
[]
["DATOS OBTENIDOS"]
["PERIODO:",null,"Registrar el intervalo de tiempo en el que se presenta el indicador (anual, semestral, trimestral, bimensual y mensual)."]
["META: ",null,"Registrar el valor que se espera alcance el indicador."]
["SEGUNDO AÑO ANTERIOR:",null,"Registrar los resultados del indicador obtenidos en el año anterior."]
["AÑO ANTERIOR:",null,"Registrar los resultados del indicador obtenidos en el segundo año anterior."]
["RESULTADO:",null,"Permite comparar los resultados respecto de la meta."]
["Dato del numerador: ",null,"Registrar el numerador de acuerdo al tipo matemático del indicador."]
["Dato del denominador: ",null,"Registrar el denominador de acuerdo al tipo matemático del indicador."]
[]
["Gráfico de barras: ",null,"Permite comprobar los valores alcanzados respecto a la meta trazada para dicho indicador."]
[]
["Análisis y observaciones:",null,"Registrar las consideraciones respecto de los resultados arrojados por el indicador."]
["Acciones de mejora: ",null,"Plantear acciones puntuales de mejora en caso de que los resultados no sean los esperados o no se estén alcanzando las metas propuestas."]
[]
[]
[]
["CONTROL DE CAMBIOS"]
["Versión",null,null,"Descripción del Cambio",null,null,"Fecha de aprobación"]
[2,null,null,"Modificación del documento",null,null,"2013-03-21"]
[3,null,null,"Modificación del documento: Anexo instructivo.",null,null,"2017-02-13"]
[4,null,null,"Modificación del documento: Se modifica el documento por actulización de vigencia, esto con el objetivo de brindar un mejoramiento continuo al subproceso de Gestión de la Información correspondiente al proceso de Garantia de la Calidad.",null,null,"2019-02-06"]
[5,null,null,"Modificación del documento: Se modifica el documento para obtener una mejora en el subproceso de \"Gestión de la Información\". Los ajustes que se realizaron fueron los siguientes:\n- Integración de los Item: Resultados de la año anterior y resultado del segundo año anterior\n- Actualización de la vigencia\n- Ajustes estructurales",null,null,"2021-10-11"]
[6,null,null,"Modificación del documento: Se modifica el documento para obtener una mejora en el subproceso de \"Gestión de la Información\". Los ajustes que se realizaron fueron los siguientes:\n\n- Actualización de la vigencia\n- Ajustes estructurales",null,null,"2023-12-13"]
["Nombre:Juan Felipe Cabrera Peña\nAgremiado Asistir",null,null,"Nombre: Milvia Ines Perez Gomez\nAgremiado asistir",null,null,"Nombre: Jose Antonio Muñoz Paz\nCargo: Gerente"]
["Elaboró",null,null,"Revisó",null,null,"Aprobó"]